[Event "Titled Tuesday Blitz April 05 Late 2022"]
[White "Lewicki, Miroslaw"]
[Black "Sanchez, Robert"]
[WhiteFideId "1113380"]
[BlackFideId "2034360"]
[WhiteElo "2529"]
[BlackElo "2321"]
[Result "0-1"]
[Round "02"]
[TimeControl "180+1"]
[Date "2022.04.06"]
[WhiteClock "0:01:01"]
[BlackClock "0:00:36"]

1. g3 {[%clk 0:03:00]}  d5 {[%clk 0:02:59]} 2. Bg2 {[%clk 0:03:01]}  e5 {[%clk 0:02:59]} 3. Nf3 {[%clk 0:03:01]}  Nc6 {[%clk 0:02:59]} 4. O-O {[%clk 0:03:01]}  f6 {[%clk 0:03:00]} 5. b3 {[%clk 0:03:01]}  Be6 {[%clk 0:03:00]} 6. Bb2 {[%clk 0:03:02]}  Qd7 {[%clk 0:03:00]} 7. d4 {[%clk 0:03:02]}  e4 {[%clk 0:03:00]} 8. Nfd2 {[%clk 0:03:02]}  O-O-O {[%clk 0:03:01]} 9. e3 {[%clk 0:03:02]}  h5 {[%clk 0:03:01]} 10. f4 {[%clk 0:02:52]}  h4 {[%clk 0:02:57]} 11. c4 {[%clk 0:02:51]}  hxg3 {[%clk 0:02:57]} 12. hxg3 {[%clk 0:02:50]}  Bh3 {[%clk 0:02:52]} 13. Qe2 {[%clk 0:02:50]}  Bxg2 {[%clk 0:02:52]} 14. Qxg2 {[%clk 0:02:51]}  Nb4 {[%clk 0:02:52]} 15. cxd5 {[%clk 0:02:48]}  f5 {[%clk 0:02:52]} 16. Nc4 {[%clk 0:02:40]}  Nxd5 {[%clk 0:02:49]} 17. Ne5 {[%clk 0:02:40]}  Qe8 {[%clk 0:02:48]} 18. Re1 {[%clk 0:02:37]}  Ngf6 {[%clk 0:02:48]} 19. g4 {[%clk 0:02:32]}  fxg4 {[%clk 0:02:32]} 20. Nxg4 {[%clk 0:02:31]}  Kb8 {[%clk 0:02:31]} 21. Nc3 {[%clk 0:02:30]}  Bb4 {[%clk 0:02:28]} 22. Nxd5 {[%clk 0:02:26]}  Nxd5 {[%clk 0:02:19]} 23. Re2 {[%clk 0:02:27]}  Qe6 {[%clk 0:02:11]} 24. Rf1 {[%clk 0:02:23]}  Rh4 {[%clk 0:02:05]} 25. f5 {[%clk 0:02:22]}  Qa6 {[%clk 0:01:56]} 26. a3 {[%clk 0:02:17]}  Bd6 {[%clk 0:01:52]} 27. Rfe1 {[%clk 0:02:00]}  Qd3 {[%clk 0:01:30]} 28. b4 {[%clk 0:01:43]}  Rdh8 {[%clk 0:01:27]} 29. Rf2 {[%clk 0:01:36]}  a5 {[%clk 0:01:17]} 30. bxa5 {[%clk 0:01:33]}  Rh3 {[%clk 0:01:08]} 31. Ne5 {[%clk 0:01:27]}  Bxe5 {[%clk 0:00:57]} 32. dxe5 {[%clk 0:01:28]}  Nxe3 {[%clk 0:00:55]} 33. Rxe3 {[%clk 0:01:13]}  Qxe3 {[%clk 0:00:54]} 34. f6 {[%clk 0:01:04]}  Rh1+ {[%clk 0:00:47]} 35. Qxh1 {[%clk 0:01:03]}  Rxh1+ {[%clk 0:00:48]} 36. Kg2 {[%clk 0:01:04]}  Rh2+ {[%clk 0:00:48]} 37. Kxh2 {[%clk 0:01:01]}  Qxf2+ {[%clk 0:00:48]} 38. Kh3 {[%clk 0:01:02]}  gxf6 {[%clk 0:00:45]} 39. exf6 {[%clk 0:01:02]}  e3 {[%clk 0:00:46]} 40. Bd4 {[%clk 0:01:01]}  Qf3+ {[%clk 0:00:45]} 41. Kh4 {[%clk 0:01:01]}  e2 {[%clk 0:00:46]} 42. Bc3 {[%clk 0:00:59]}  Qxf6+ {[%clk 0:00:44]} 43. Bxf6 {[%clk 0:00:59]}  e1=Q+ {[%clk 0:00:44]} 44. Kg5 {[%clk 0:00:59]}  Qxa5+ {[%clk 0:00:44]} 45. Kg6 {[%clk 0:00:59]}  Qxa3 {[%clk 0:00:44]} 46. Be7 {[%clk 0:01:00]}  Qd3+ {[%clk 0:00:44]} 47. Kf7 {[%clk 0:01:00]}  c5 {[%clk 0:00:44]} 48. Bxc5 {[%clk 0:01:00]}  b5 {[%clk 0:00:44]} 49. Ke6 {[%clk 0:00:59]}  Kb7 {[%clk 0:00:44]} 50. Bd6 {[%clk 0:00:58]}  Kc6 {[%clk 0:00:44]} 51. Be5 {[%clk 0:00:59]}  b4 {[%clk 0:00:44]} 52. Bf6 {[%clk 0:00:59]}  b3 {[%clk 0:00:44]} 53. Be5 {[%clk 0:00:59]}  Qc2 {[%clk 0:00:41]} 54. Bf6 {[%clk 0:00:59]}  b2 {[%clk 0:00:41]} 55. Bxb2 {[%clk 0:00:59]}  Qxb2 {[%clk 0:00:42]} 56. Kf7 {[%clk 0:00:59]}  Qe5 {[%clk 0:00:41]} 57. Kg6 {[%clk 0:00:59]}  Qf4 {[%clk 0:00:41]} 58. Kg7 {[%clk 0:00:59]}  Kd7 {[%clk 0:00:41]} 59. Kg6 {[%clk 0:01:00]}  Ke7 {[%clk 0:00:40]} 60. Kh5 {[%clk 0:01:00]}  Qg3 {[%clk 0:00:39]} 61. Kh6 {[%clk 0:01:00]}  Kf6 {[%clk 0:00:37]} 62. Kh7 {[%clk 0:01:01]}  Qg7# {[%clk 0:00:36]} 0-1


[Site "https://www.chess.com"]

[Event "Titled Tuesday Blitz April 05 Late 2022"]
[White "Maghsoodloo, Parham"]
[Black "Najer, Evgeniy"]
[WhiteFideId "12539929"]
[BlackFideId "4118987"]
[WhiteElo "2630"]
[BlackElo "2562"]
[Result "1-0"]
[Round "02"]
[TimeControl "180+1"]
[Date "2022.04.05"]
[WhiteClock "0:00:04"]
[BlackClock "0:00:01"]

1. d4 {[%clk 0:03:00]}  d5 {[%clk 0:02:58]} 2. Nf3 {[%clk 0:03:00]}  Nf6 {[%clk 0:02:57]} 3. Bf4 {[%clk 0:03:00]}  c5 {[%clk 0:02:56]} 4. e3 {[%clk 0:03:00]}  Nc6 {[%clk 0:02:56]} 5. Nbd2 {[%clk 0:02:59]}  Nh5 {[%clk 0:02:56]} 6. dxc5 {[%clk 0:02:56]}  Nxf4 {[%clk 0:02:57]} 7. exf4 {[%clk 0:02:56]}  Qa5 {[%clk 0:02:56]} 8. c4 {[%clk 0:02:18]}  e6 {[%clk 0:02:54]} 9. a3 {[%clk 0:02:16]}  Qxc5 {[%clk 0:02:52]} 10. b4 {[%clk 0:02:16]}  Qb6 {[%clk 0:02:51]} 11. Bd3 {[%clk 0:01:59]}  Be7 {[%clk 0:02:49]} 12. O-O {[%clk 0:02:00]}  O-O {[%clk 0:02:47]} 13. Rc1 {[%clk 0:02:00]}  Bd7 {[%clk 0:02:17]} 14. Re1 {[%clk 0:01:58]}  Rfe8 {[%clk 0:02:14]} 15. Qb3 {[%clk 0:01:56]}  Nd4 {[%clk 0:02:06]} 16. Nxd4 {[%clk 0:01:54]}  Qxd4 {[%clk 0:02:06]} 17. g3 {[%clk 0:01:55]}  Ba4 {[%clk 0:02:01]} 18. Qb1 {[%clk 0:01:54]}  g6 {[%clk 0:01:57]} 19. Nf3 {[%clk 0:01:53]}  Qf6 {[%clk 0:01:55]} 20. c5 {[%clk 0:01:52]}  Rac8 {[%clk 0:01:47]} 21. Ne5 {[%clk 0:01:48]}  Red8 {[%clk 0:01:47]} 22. Qa2 {[%clk 0:01:34]}  Bf8 {[%clk 0:01:44]} 23. Qe2 {[%clk 0:01:33]}  Bg7 {[%clk 0:01:28]} 24. Bb5 {[%clk 0:01:33]}  Bxb5 {[%clk 0:01:27]} 25. Qxb5 {[%clk 0:01:34]}  Qe7 {[%clk 0:01:27]} 26. Nd3 {[%clk 0:01:30]}  Qc7 {[%clk 0:01:20]} 27. Qa4 {[%clk 0:01:30]}  a6 {[%clk 0:01:20]} 28. Qb3 {[%clk 0:01:30]}  Bf6 {[%clk 0:00:55]} 29. a4 {[%clk 0:01:30]}  Kg7 {[%clk 0:00:55]} 30. b5 {[%clk 0:01:30]}  axb5 {[%clk 0:00:55]} 31. axb5 {[%clk 0:01:31]}  Ra8 {[%clk 0:00:56]} 32. Re2 {[%clk 0:01:21]}  Qa5 {[%clk 0:00:53]} 33. c6 {[%clk 0:01:19]}  bxc6 {[%clk 0:00:53]} 34. bxc6 {[%clk 0:01:19]}  Rab8 {[%clk 0:00:49]} 35. Qd1 {[%clk 0:01:10]}  Rdc8 {[%clk 0:00:48]} 36. Rec2 {[%clk 0:01:10]}  Rc7 {[%clk 0:00:47]} 37. Nc5 {[%clk 0:00:42]}  Rxc6 {[%clk 0:00:28]} 38. Nb3 {[%clk 0:00:40]}  Rxb3 {[%clk 0:00:24]} 39. Rxc6 {[%clk 0:00:40]}  Rb2 {[%clk 0:00:18]} 40. R6c2 {[%clk 0:00:40]}  Rb7 {[%clk 0:00:18]} 41. h4 {[%clk 0:00:40]}  h5 {[%clk 0:00:18]} 42. f5 {[%clk 0:00:34]}  exf5 {[%clk 0:00:17]} 43. Rc5 {[%clk 0:00:34]}  Qa3 {[%clk 0:00:14]} 44. Qxd5 {[%clk 0:00:32]}  Re7 {[%clk 0:00:12]} 45. Kg2 {[%clk 0:00:18]}  f4 {[%clk 0:00:11]} 46. gxf4 {[%clk 0:00:18]}  Bxh4 {[%clk 0:00:08]} 47. f5 {[%clk 0:00:18]}  Bf6 {[%clk 0:00:07]} 48. fxg6 {[%clk 0:00:18]}  fxg6 {[%clk 0:00:08]} 49. Rc8 {[%clk 0:00:17]}  Qa4 {[%clk 0:00:03]} 50. R1c4 {[%clk 0:00:15]}  Qd7 {[%clk 0:00:02]} 51. Qg8+ {[%clk 0:00:15]}  Kh6 {[%clk 0:00:02]} 52. Qf8+ {[%clk 0:00:12]}  Bg7 {[%clk 0:00:01]} 53. Qf4+ {[%clk 0:00:13]}  Kh7 {[%clk 0:00:02]} 54. Qf3 {[%clk 0:00:13]}  Rf7 {[%clk 0:00:02]} 55. Qe4 {[%clk 0:00:12]}  Qf5 {[%clk 0:00:01]} 56. Qxf5 {[%clk 0:00:10]}  Rxf5 {[%clk 0:00:02]} 57. R4c7 {[%clk 0:00:10]}  Kh6 {[%clk 0:00:03]} 58. Rg8 {[%clk 0:00:10]}  Bd4 {[%clk 0:00:02]} 59. f3 {[%clk 0:00:08]}  Rg5+ {[%clk 0:00:03]} 60. Kf1 {[%clk 0:00:09]}  Rf5 {[%clk 0:00:04]} 61. Ke2 {[%clk 0:00:08]}  Be5 {[%clk 0:00:04]} 62. Rc6 {[%clk 0:00:07]}  Bf6 {[%clk 0:00:04]} 63. Rf8 {[%clk 0:00:06]}  Re5+ {[%clk 0:00:04]} 64. Kf1 {[%clk 0:00:06]}  Bg7 {[%clk 0:00:05]} 65. Rf7 {[%clk 0:00:05]}  Rd5 {[%clk 0:00:03]} 66. f4 {[%clk 0:00:04]}  Rd1+ {[%clk 0:00:02]} 67. Ke2 {[%clk 0:00:04]}  Rd5 {[%clk 0:00:03]} 68. f5 {[%clk 0:00:04]}  Re5+ {[%clk 0:00:01]} 69. Kf3 {[%clk 0:00:04]} 1-0


[Site "https://www.chess.com"]

[Event "Titled Tuesday Blitz April 05 Late 2022"]
[White "Mekhitarian, Krikor Sevag"]
[Black "Danaci, Ege"]
[WhiteFideId "2107660"]
[BlackFideId "34506748"]
[WhiteElo "2762"]
[BlackElo "2391"]
[Result "1-0"]
[Round "02"]
[TimeControl "180+1"]
[Date "2022.04.06"]
[WhiteClock "0:00:39"]
[BlackClock "0:00:04"]

1. Nf3 {[%clk 0:03:00]}  d5 {[%clk 0:02:55]} 2. c4 {[%clk 0:03:00]}  c6 {[%clk 0:02:53]} 3. e3 {[%clk 0:03:00]}  Nf6 {[%clk 0:02:53]} 4. Nc3 {[%clk 0:02:59]}  e6 {[%clk 0:02:52]} 5. b3 {[%clk 0:02:59]}  Be7 {[%clk 0:02:52]} 6. Bb2 {[%clk 0:02:59]}  O-O {[%clk 0:02:53]} 7. d4 {[%clk 0:02:58]}  Nbd7 {[%clk 0:02:53]} 8. Bd3 {[%clk 0:02:59]}  a6 {[%clk 0:02:53]} 9. O-O {[%clk 0:02:56]}  b5 {[%clk 0:02:53]} 10. Qc2 {[%clk 0:02:36]}  Rb8 {[%clk 0:02:51]} 11. e4 {[%clk 0:02:31]}  bxc4 {[%clk 0:02:51]} 12. bxc4 {[%clk 0:02:31]}  h6 {[%clk 0:01:54]} 13. e5 {[%clk 0:02:19]}  Ne8 {[%clk 0:01:53]} 14. c5 {[%clk 0:02:11]}  Nc7 {[%clk 0:01:51]} 15. Rfe1 {[%clk 0:02:07]}  a5 {[%clk 0:01:43]} 16. Ne2 {[%clk 0:02:02]}  Ba6 {[%clk 0:01:42]} 17. Bxa6 {[%clk 0:02:00]}  Nxa6 {[%clk 0:01:43]} 18. a3 {[%clk 0:02:00]}  Qc7 {[%clk 0:01:36]} 19. Bc3 {[%clk 0:01:59]}  Rb5 {[%clk 0:01:30]} 20. Nf4 {[%clk 0:01:56]}  Rfb8 {[%clk 0:01:27]} 21. h4 {[%clk 0:01:56]}  Rb3 {[%clk 0:01:16]} 22. Nd2 {[%clk 0:01:46]}  R3b5 {[%clk 0:00:54]} 23. g3 {[%clk 0:01:43]}  Qb7 {[%clk 0:00:44]} 24. a4 {[%clk 0:01:29]}  Rb4 {[%clk 0:00:25]} 25. Bxb4 {[%clk 0:01:28]}  Nxb4 {[%clk 0:00:26]} 26. Qc3 {[%clk 0:01:16]}  Qa6 {[%clk 0:00:25]} 27. Rab1 {[%clk 0:01:15]}  Bf8 {[%clk 0:00:25]} 28. Re3 {[%clk 0:01:08]}  Re8 {[%clk 0:00:21]} 29. Nd3 {[%clk 0:01:05]}  Nxd3 {[%clk 0:00:10]} 30. Qxd3 {[%clk 0:01:05]}  Qc8 {[%clk 0:00:09]} 31. Nf3 {[%clk 0:01:02]}  Nb8 {[%clk 0:00:09]} 32. Rb6 {[%clk 0:01:00]}  Be7 {[%clk 0:00:07]} 33. Re1 {[%clk 0:00:59]}  Bd8 {[%clk 0:00:07]} 34. Rb3 {[%clk 0:00:58]}  Na6 {[%clk 0:00:06]} 35. Qe2 {[%clk 0:00:46]}  Nb4 {[%clk 0:00:07]} 36. Reb1 {[%clk 0:00:44]}  Bc7 {[%clk 0:00:07]} 37. Ne1 {[%clk 0:00:44]}  f6 {[%clk 0:00:07]} 38. exf6 {[%clk 0:00:43]}  gxf6 {[%clk 0:00:04]} 39. Nd3 {[%clk 0:00:39]} 1-0


[Site "https://www.chess.com"]

[Event "Titled Tuesday Blitz April 05 Late 2022"]
[White "Mickiewicz, Piotr"]
[Black "Winkels, Marcel"]
[WhiteFideId "1114891"]
[BlackFideId "1003887"]
[WhiteElo "2266"]
[BlackElo "1900"]
[Result "1-0"]
[Round "02"]
[TimeControl "180+1"]
[Date "2022.04.06"]
[WhiteClock "0:00:52"]
[BlackClock "0:00:27"]

1. Nf3 {[%clk 0:03:00]}  Nf6 {[%clk 0:02:58]} 2. g3 {[%clk 0:03:01]}  g6 {[%clk 0:02:58]} 3. Bg2 {[%clk 0:03:02]}  Bg7 {[%clk 0:02:58]} 4. O-O {[%clk 0:03:02]}  O-O {[%clk 0:02:58]} 5. d3 {[%clk 0:03:02]}  c5 {[%clk 0:02:57]} 6. e4 {[%clk 0:03:02]}  Nc6 {[%clk 0:02:57]} 7. Nc3 {[%clk 0:03:03]}  d6 {[%clk 0:02:57]} 8. h3 {[%clk 0:03:03]}  Bd7 {[%clk 0:02:56]} 9. Be3 {[%clk 0:03:01]}  Rb8 {[%clk 0:02:53]} 10. a4 {[%clk 0:03:00]}  a6 {[%clk 0:02:53]} 11. Qd2 {[%clk 0:02:59]}  b5 {[%clk 0:02:51]} 12. axb5 {[%clk 0:02:58]}  axb5 {[%clk 0:02:51]} 13. Bh6 {[%clk 0:02:52]}  b4 {[%clk 0:02:51]} 14. Ne2 {[%clk 0:02:51]}  Qc8 {[%clk 0:02:47]} 15. Kh2 {[%clk 0:02:46]}  Re8 {[%clk 0:02:37]} 16. b3 {[%clk 0:02:37]}  Bh8 {[%clk 0:02:21]} 17. Ra2 {[%clk 0:01:31]}  Qc7 {[%clk 0:01:56]} 18. Ng5 {[%clk 0:01:29]}  Nd4 {[%clk 0:01:43]} 19. Nxd4 {[%clk 0:01:28]}  cxd4 {[%clk 0:01:42]} 20. Rfa1 {[%clk 0:01:27]}  Bc6 {[%clk 0:01:32]} 21. Ra6 {[%clk 0:01:17]}  Rb6 {[%clk 0:01:25]} 22. Ra7 {[%clk 0:01:16]}  Rb7 {[%clk 0:01:24]} 23. R7a5 {[%clk 0:01:14]}  Nd7 {[%clk 0:01:18]} 24. f4 {[%clk 0:01:10]}  Nc5 {[%clk 0:00:59]} 25. R1a2 {[%clk 0:01:07]}  Ne6 {[%clk 0:00:57]} 26. Nxe6 {[%clk 0:01:05]}  fxe6 {[%clk 0:00:57]} 27. h4 {[%clk 0:01:06]}  Rbb8 {[%clk 0:00:52]} 28. Bh3 {[%clk 0:01:04]}  Bd7 {[%clk 0:00:51]} 29. Ra7 {[%clk 0:01:03]}  Rb7 {[%clk 0:00:50]} 30. R7a5 {[%clk 0:00:59]}  Reb8 {[%clk 0:00:45]} 31. h5 {[%clk 0:00:58]}  gxh5 {[%clk 0:00:40]} 32. Qe2 {[%clk 0:00:57]}  Bg7 {[%clk 0:00:28]} 33. Qxh5 {[%clk 0:00:55]}  Bxh6 {[%clk 0:00:27]} 34. Qxh6 {[%clk 0:00:55]}  Kh8 {[%clk 0:00:27]} 35. Rh5 {[%clk 0:00:52]} 1-0


[Site "https://www.chess.com"]

[Event "Titled Tuesday Blitz April 05 Late 2022"]
[White "Migot, Tangi"]
[Black "Chyngyz, Sultai"]
[WhiteFideId "662445"]
[BlackFideId "13803158"]
[WhiteElo "2517"]
[BlackElo "2267"]
[Result "1-0"]
[Round "02"]
[TimeControl "180+1"]
[Date "2022.04.06"]
[WhiteClock "0:00:10"]
[BlackClock "0:00:18"]

1. e4 {[%clk 0:03:00]}  c5 {[%clk 0:02:53]} 2. Nf3 {[%clk 0:03:01]}  d6 {[%clk 0:02:53]} 3. c3 {[%clk 0:03:01]}  Nf6 {[%clk 0:02:52]} 4. h3 {[%clk 0:03:01]}  g6 {[%clk 0:02:51]} 5. Bd3 {[%clk 0:03:01]}  Bg7 {[%clk 0:02:51]} 6. Bc2 {[%clk 0:03:01]}  O-O {[%clk 0:02:51]} 7. d4 {[%clk 0:03:01]}  Nc6 {[%clk 0:02:50]} 8. O-O {[%clk 0:03:00]}  cxd4 {[%clk 0:02:50]} 9. cxd4 {[%clk 0:03:00]}  e5 {[%clk 0:02:50]} 10. d5 {[%clk 0:02:55]}  Nb4 {[%clk 0:02:50]} 11. Nc3 {[%clk 0:02:55]}  Nxc2 {[%clk 0:02:51]} 12. Qxc2 {[%clk 0:02:56]}  Qc7 {[%clk 0:02:50]} 13. a4 {[%clk 0:02:55]}  Bd7 {[%clk 0:02:47]} 14. Be3 {[%clk 0:02:53]}  Nh5 {[%clk 0:02:41]} 15. Rfc1 {[%clk 0:02:52]}  f5 {[%clk 0:02:37]} 16. Ng5 {[%clk 0:02:42]}  f4 {[%clk 0:02:27]} 17. Bd2 {[%clk 0:02:41]}  Rae8 {[%clk 0:02:24]} 18. Nb5 {[%clk 0:02:36]}  Qb8 {[%clk 0:02:22]} 19. Bb4 {[%clk 0:02:26]}  Bxb5 {[%clk 0:02:19]} 20. axb5 {[%clk 0:02:25]}  Rc8 {[%clk 0:02:16]} 21. Qb3 {[%clk 0:02:24]}  f3 {[%clk 0:02:12]} 22. g3 {[%clk 0:02:13]}  Rxc1+ {[%clk 0:02:09]} 23. Rxc1 {[%clk 0:02:13]}  Bh6 {[%clk 0:02:09]} 24. Bd2 {[%clk 0:02:09]}  Rc8 {[%clk 0:02:07]} 25. Qxf3 {[%clk 0:02:04]}  Rxc1+ {[%clk 0:02:01]} 26. Bxc1 {[%clk 0:02:04]}  Qc7 {[%clk 0:01:58]} 27. Qc3 {[%clk 0:01:52]}  Qxc3 {[%clk 0:01:54]} 28. bxc3 {[%clk 0:01:53]}  Nf6 {[%clk 0:01:55]} 29. f3 {[%clk 0:01:49]}  Nh5 {[%clk 0:01:52]} 30. Kf2 {[%clk 0:01:44]}  Bxg5 {[%clk 0:01:48]} 31. Bxg5 {[%clk 0:01:45]}  Ng7 {[%clk 0:01:48]} 32. Be3 {[%clk 0:01:28]}  b6 {[%clk 0:01:47]} 33. Bg5 {[%clk 0:01:21]}  Ne8 {[%clk 0:01:45]} 34. f4 {[%clk 0:01:16]}  Kf7 {[%clk 0:01:43]} 35. f5 {[%clk 0:00:59]}  gxf5 {[%clk 0:01:21]} 36. exf5 {[%clk 0:00:59]}  h6 {[%clk 0:01:21]} 37. Bxh6 {[%clk 0:00:40]}  Nf6 {[%clk 0:01:20]} 38. c4 {[%clk 0:00:38]}  Ne4+ {[%clk 0:01:20]} 39. Kf3 {[%clk 0:00:30]}  Nc3 {[%clk 0:01:15]} 40. g4 {[%clk 0:00:20]}  Nd1 {[%clk 0:01:11]} 41. Bc1 {[%clk 0:00:20]}  Kf6 {[%clk 0:01:08]} 42. h4 {[%clk 0:00:20]}  Nc3 {[%clk 0:01:03]} 43. Bd2 {[%clk 0:00:18]}  Nb1 {[%clk 0:01:01]} 44. Bc1 {[%clk 0:00:18]}  Nc3 {[%clk 0:01:01]} 45. h5 {[%clk 0:00:17]}  Na2 {[%clk 0:00:55]} 46. Bb2 {[%clk 0:00:16]}  Kg5 {[%clk 0:00:52]} 47. Ke4 {[%clk 0:00:14]}  Nb4 {[%clk 0:00:32]} 48. Bc1+ {[%clk 0:00:13]}  Kf6 {[%clk 0:00:32]} 49. h6 {[%clk 0:00:14]}  Na2 {[%clk 0:00:30]} 50. g5+ {[%clk 0:00:14]}  Kf7 {[%clk 0:00:29]} 51. g6+ {[%clk 0:00:12]}  Kf6 {[%clk 0:00:28]} 52. h7 {[%clk 0:00:12]}  Kg7 {[%clk 0:00:27]} 53. Bh6+ {[%clk 0:00:12]}  Kh8 {[%clk 0:00:25]} 54. Bd2 {[%clk 0:00:12]}  Kg7 {[%clk 0:00:21]} 55. f6+ {[%clk 0:00:12]}  Kh8 {[%clk 0:00:20]} 56. f7 {[%clk 0:00:11]}  Kg7 {[%clk 0:00:20]} 57. h8=Q+ {[%clk 0:00:11]}  Kxg6 {[%clk 0:00:18]} 58. Qg8+ {[%clk 0:00:10]}  Kh5 {[%clk 0:00:18]} 59. Qg5# {[%clk 0:00:10]} 1-0


[Site "https://www.chess.com"]

[Event "Titled Tuesday Blitz April 05 Late 2022"]
[White "Mkrtchyan, Mariam"]
[Black "Kujawski, Adam"]
[WhiteFideId "13310828"]
[BlackFideId "1100920"]
[WhiteElo "2534"]
[BlackElo "2331"]
[Result "1-0"]
[Round "02"]
[TimeControl "180+1"]
[Date "2022.04.06"]
[WhiteClock "0:00:32"]
[BlackClock "0:00:02"]

1. d4 {[%clk 0:03:00]}  Nf6 {[%clk 0:02:59]} 2. Nf3 {[%clk 0:02:59]}  c5 {[%clk 0:02:59]} 3. d5 {[%clk 0:02:57]}  e6 {[%clk 0:02:59]} 4. c4 {[%clk 0:02:54]}  exd5 {[%clk 0:02:59]} 5. cxd5 {[%clk 0:02:54]}  d6 {[%clk 0:03:00]} 6. Nc3 {[%clk 0:02:53]}  g6 {[%clk 0:03:00]} 7. e4 {[%clk 0:02:49]}  Bg7 {[%clk 0:03:00]} 8. h3 {[%clk 0:02:44]}  O-O {[%clk 0:02:59]} 9. Bd3 {[%clk 0:02:42]}  b5 {[%clk 0:02:59]} 10. a3 {[%clk 0:02:29]}  a6 {[%clk 0:02:58]} 11. O-O {[%clk 0:02:25]}  Bb7 {[%clk 0:02:58]} 12. Re1 {[%clk 0:02:21]}  Nbd7 {[%clk 0:02:57]} 13. Bf4 {[%clk 0:02:17]}  Qc7 {[%clk 0:02:57]} 14. Qd2 {[%clk 0:02:10]}  Rfe8 {[%clk 0:02:57]} 15. Rad1 {[%clk 0:02:02]}  Rac8 {[%clk 0:02:42]} 16. Bxb5 {[%clk 0:01:53]}  axb5 {[%clk 0:02:34]} 17. Nxb5 {[%clk 0:01:52]}  Qb6 {[%clk 0:02:25]} 18. Nxd6 {[%clk 0:01:52]}  Nh5 {[%clk 0:02:22]} 19. Bh2 {[%clk 0:01:36]}  Ne5 {[%clk 0:01:52]} 20. Bxe5 {[%clk 0:01:25]}  Bxe5 {[%clk 0:01:52]} 21. Nxe8 {[%clk 0:01:23]}  Bf4 {[%clk 0:01:21]} 22. Qc3 {[%clk 0:01:22]}  Rxe8 {[%clk 0:01:19]} 23. e5 {[%clk 0:01:20]}  c4 {[%clk 0:01:05]} 24. Qxc4 {[%clk 0:01:12]}  Ba6 {[%clk 0:00:58]} 25. Qc6 {[%clk 0:01:03]}  Qxc6 {[%clk 0:00:40]} 26. dxc6 {[%clk 0:01:03]}  Rc8 {[%clk 0:00:39]} 27. Rd6 {[%clk 0:00:57]}  Bb5 {[%clk 0:00:38]} 28. Nd4 {[%clk 0:00:52]}  Bc4 {[%clk 0:00:37]} 29. b3 {[%clk 0:00:50]}  Bd3 {[%clk 0:00:24]} 30. Rd7 {[%clk 0:00:50]}  Ng7 {[%clk 0:00:17]} 31. c7 {[%clk 0:00:50]}  Bg5 {[%clk 0:00:16]} 32. Rd1 {[%clk 0:00:41]}  Ba6 {[%clk 0:00:06]} 33. Nf3 {[%clk 0:00:33]}  h6 {[%clk 0:00:01]} 34. Nxg5 {[%clk 0:00:32]}  hxg5 {[%clk 0:00:01]} 35. Rd8+ {[%clk 0:00:32]}  Kh7 {[%clk 0:00:01]} 36. Rxc8 {[%clk 0:00:32]}  Bxc8 {[%clk 0:00:02]} 37. Rd8 {[%clk 0:00:32]} 1-0


[Site "https://www.chess.com"]

[Event "Titled Tuesday Blitz April 05 Late 2022"]
[White "Morris-Suzuki, Sophie"]
[Black "Ardila, Oscar Humberto"]
[WhiteFideId "30922615"]
[BlackFideId "4404742"]
[WhiteElo "2503"]
[BlackElo "1983"]
[Result "1-0"]
[Round "02"]
[TimeControl "180+1"]
[Date "2022.04.06"]
[WhiteClock "0:00:36"]
[BlackClock "0:00:22"]

1. d4 {[%clk 0:03:00]}  Nf6 {[%clk 0:03:00]} 2. c4 {[%clk 0:03:01]}  g6 {[%clk 0:03:00]} 3. Nc3 {[%clk 0:03:01]}  Bg7 {[%clk 0:03:00]} 4. e4 {[%clk 0:03:02]}  d6 {[%clk 0:03:00]} 5. f3 {[%clk 0:03:03]}  O-O {[%clk 0:03:01]} 6. Nge2 {[%clk 0:03:03]}  e5 {[%clk 0:03:01]} 7. dxe5 {[%clk 0:03:03]}  dxe5 {[%clk 0:03:01]} 8. Qxd8 {[%clk 0:03:04]}  Rxd8 {[%clk 0:03:01]} 9. Bg5 {[%clk 0:03:05]}  Re8 {[%clk 0:03:00]} 10. Nd5 {[%clk 0:02:53]}  Nxd5 {[%clk 0:02:58]} 11. cxd5 {[%clk 0:02:54]}  h6 {[%clk 0:02:54]} 12. Be3 {[%clk 0:02:54]}  c6 {[%clk 0:02:47]} 13. Nc3 {[%clk 0:02:53]}  cxd5 {[%clk 0:02:44]} 14. Nxd5 {[%clk 0:02:53]}  Na6 {[%clk 0:02:26]} 15. Bxa6 {[%clk 0:02:53]}  bxa6 {[%clk 0:02:27]} 16. Nc7 {[%clk 0:02:53]}  Be6 {[%clk 0:02:24]} 17. Nxa8 {[%clk 0:02:52]}  Rxa8 {[%clk 0:02:24]} 18. O-O {[%clk 0:02:51]}  Rb8 {[%clk 0:02:22]} 19. b3 {[%clk 0:02:51]}  Rb7 {[%clk 0:02:16]} 20. Rfd1 {[%clk 0:02:51]}  Kh7 {[%clk 0:02:06]} 21. Rd6 {[%clk 0:02:49]}  a5 {[%clk 0:02:02]} 22. Ra6 {[%clk 0:02:47]}  Rc7 {[%clk 0:01:52]} 23. Rxa7 {[%clk 0:02:30]}  Rc2 {[%clk 0:01:51]} 24. Rxa5 {[%clk 0:02:26]}  g5 {[%clk 0:01:50]} 25. Rc1 {[%clk 0:02:23]}  Rb2 {[%clk 0:01:50]} 26. Rd1 {[%clk 0:02:00]}  Re2 {[%clk 0:01:46]} 27. Bf2 {[%clk 0:01:55]}  g4 {[%clk 0:01:46]} 28. Re1 {[%clk 0:01:31]}  Rc2 {[%clk 0:01:41]} 29. b4 {[%clk 0:01:28]}  gxf3 {[%clk 0:01:40]} 30. gxf3 {[%clk 0:01:28]}  Bf8 {[%clk 0:01:26]} 31. a3 {[%clk 0:01:24]}  Be7 {[%clk 0:01:18]} 32. Rxe5 {[%clk 0:01:12]}  Bf6 {[%clk 0:01:14]} 33. Rc5 {[%clk 0:01:09]}  Ra2 {[%clk 0:01:11]} 34. e5 {[%clk 0:01:04]}  Bg5 {[%clk 0:01:07]} 35. h4 {[%clk 0:00:56]}  Bf4 {[%clk 0:01:06]} 36. Re4 {[%clk 0:00:52]}  Bd2 {[%clk 0:00:57]} 37. Be3 {[%clk 0:00:37]}  Bf5 {[%clk 0:00:34]} 38. Bxd2 {[%clk 0:00:38]}  Bxe4 {[%clk 0:00:34]} 39. fxe4 {[%clk 0:00:38]}  Rxd2 {[%clk 0:00:33]} 40. Rc3 {[%clk 0:00:37]}  Kg6 {[%clk 0:00:33]} 41. Rb3 {[%clk 0:00:37]}  Kh5 {[%clk 0:00:25]} 42. b5 {[%clk 0:00:37]}  Kg4 {[%clk 0:00:24]} 43. b6 {[%clk 0:00:35]}  Rd1+ {[%clk 0:00:24]} 44. Kf2 {[%clk 0:00:35]}  Rd2+ {[%clk 0:00:24]} 45. Ke3 {[%clk 0:00:35]}  Rd8 {[%clk 0:00:24]} 46. b7 {[%clk 0:00:35]}  Rb8 {[%clk 0:00:24]} 47. a4 {[%clk 0:00:36]}  Kxh4 {[%clk 0:00:24]} 48. a5 {[%clk 0:00:36]}  Kg3 {[%clk 0:00:25]} 49. a6 {[%clk 0:00:36]}  h5 {[%clk 0:00:24]} 50. a7 {[%clk 0:00:36]}  Rd8 {[%clk 0:00:22]} 51. b8=Q {[%clk 0:00:36]}  Rxb8 {[%clk 0:00:22]} 52. axb8=Q {[%clk 0:00:36]} 1-0


[Site "https://www.chess.com"]